bitfinex-derivatives/quotes_ETHF0:USTF0_20230104
["timestamp","ask_amount","ask_price","bid_price","bid_amount"]
[1672840531450,4.58617893,1253.9,1253.8,2.96504063]
[1672840531663,7.08617893,1253.9,1253.8,2.96504063]
[1672840531871,4.099,1253.9,1253.8,2.96504063]
[1672840532711,1.599,1253.9,1253.8,2.96504063]
[1672840532923,4.099,1253.9,1253.8,2.96504063]
[1672840535875,1.599,1253.9,1253.8,2.96504063]
[1672840536086,4.099,1253.9,1253.8,2.96504063]
[1672840537140,1.599,1253.9,1253.8,2.96504063]
[1672840537352,4.58750372,1253.9,1253.8,4.75364757]
[1672840537766,1.599,1253.9,1253.8,4.75364757]
[1672840539136,4.099,1253.9,1253.8,4.75364757]
[1672840539448,4.099,1253.9,1253.8,2.96504063]
[1672840539767,7.68596792,1253.9,1253.8,2.96504063]
[1672840540502,7.68596792,1253.9,1253.8,1.19257004]
[1672840540714,1.599,1253.9,1253.8,2.98117698]
[1672840542708,4.099,1253.9,1253.8,2.98117698]
[1672840543236,1.599,1253.9,1253.8,2.98117698]
[1672840543962,4.099,1253.9,1253.8,2.98117698]
[1672840544175,1.599,1253.9,1253.8,2.98117698]
[1672840544808,7.68596792,1253.9,1253.8,2.98117698]
[1672840545446,4.099,1253.9,1253.8,2.98117698]
[1672840545648,7.68596792,1253.9,1253.8,1.19257004]
[1672840547333,7.68596792,1253.9,1253.7,1.16066831]
[1672840547334,30.80628242,1253.9,1253.7,1.16066831]
[1672840547650,1.599,1253.7,1253.6,1.78860694]
[1672840547964,7.78776762,1253.7,1253.5,7.17525828]
[1672840548168,4.59061484,1253.6,1253.5,7.17525828]
[1672840548593,4.59061484,1253.6,1253.5,4.79590694]
[1672840549219,4.59061484,1253.6,1253.5,1.78860694]
[1672840549432,4.59061484,1253.6,1253.4,4.16795828]
[1672840549433,1.599,1253.6,1253.4,4.16795828]
[1672840549644,4.57414991,1253.5,1253.4,1.78860694]
[1672840550174,4.57414991,1253.5,1253.4,4.16795828]
[1672840550383,1.585,1253.5,1253.4,1.78860694]
[1672840552589,1.585,1253.5,1253.3,11.27425828]
[1672840553117,1.585,1253.5,1253.4,1.78860694]
[1672840553325,1.585,1253.5,1253.4,3.78860694]
[1672840554481,1.585,1253.5,1253.4,2.0]
[1672840555841,1.585,1253.5,1253.3,7.17525828]
[1672840556162,1.599,1253.4,1253.3,3.0073]
[1672840556363,4.099,1253.4,1253.3,3.0073]
[1672840560562,4.099,1253.4,1253.2,8.38090694]
[1672840560781,4.099,1253.4,1253.2,6.5923]
[1672840561205,4.099,1253.4,1253.2,4.5923]
[1672840561940,4.099,1253.4,1253.2,6.5923]
[1672840563411,4.099,1253.4,1253.2,4.5923]
[1672840567823,4.099,1253.4,1253.2,1.585]
[1672840568455,12.076,1253.4,1253.2,1.585]
[1672840572966,12.076,1253.4,1253.2,4.5923]
[1672840577803,15.0833,1253.4,1253.2,4.5923]
[1672840578225,15.0833,1253.4,1253.2,1.585]
[1672840578436,18.07244991,1253.4,1253.2,1.585]
[1672840579484,15.0833,1253.4,1253.2,1.585]
[1672840579804,12.076,1253.4,1253.2,1.585]
[1672840580647,15.06514991,1253.4,1253.2,1.585]
[1672840581688,10.477,1253.3,1253.2,1.585]
[1672840583792,12.072,1253.3,1253.1,4.6063]
[1672840584109,15.06114991,1253.3,1253.1,4.6063]
[1672840584844,15.06114991,1253.3,1253.1,6.39490694]
[1672840585795,1.595,1253.3,1253.1,6.39490694]
[1672840586111,1.595,1253.3,1253.2,2.0]
[1672840586318,15.06514991,1253.4,1253.2,5.37360694]
[1672840586536,15.06514991,1253.4,1253.3,3.0073]
[1672840587480,15.06514991,1253.4,1253.2,5.37360694]
[1672840587690,15.06514991,1253.4,1253.2,8.38090694]
[1672840589055,4.58814991,1253.4,1253.2,8.38090694]
[1672840589263,4.58814991,1253.4,1253.3,4.97660694]
[1672840589264,2.98914991,1253.4,1253.3,4.97660694]
[1672840594114,2.98914991,1253.4,1253.3,7.98390694]
[1672840597369,2.98914991,1253.4,1253.3,4.97660694]
[1672840597571,2.98914991,1253.4,1253.3,7.98390694]
[1672840597999,2.98914991,1253.4,1253.3,4.97660694]
[1672840598213,2.98914991,1253.4,1253.3,7.98390694]
[1672840601461,2.98914991,1253.4,1253.3,4.97660694]
[1672840603775,2.98914991,1253.4,1253.3,3.37760694]
[1672840610617,15.66576762,1253.5,1253.3,1.589]
[1672840611041,2.98939839,1253.4,1253.3,3.37760694]
[1672840611464,15.66576762,1253.5,1253.3,1.589]
[1672840611780,2.98942848,1253.4,1253.3,3.37760694]
[1672840611989,15.66576762,1253.5,1253.3,1.589]
[1672840612196,2.98941422,1253.4,1253.3,1.589]
[1672840612413,15.66576762,1253.5,1253.3,1.589]
[1672840612728,2.98941474,1253.4,1253.3,3.37760694]
[1672840612936,15.66576762,1253.5,1253.3,1.589]
[1672840613456,2.98940361,1253.4,1253.3,1.589]
[1672840613676,2.98940361,1253.4,1253.3,3.37760694]
[1672840613989,2.98940361,1253.4,1253.3,3.38760694]
[1672840614187,2.98941929,1253.4,1253.3,3.38760694]
[1672840614394,15.66576762,1253.5,1253.3,1.599]
[1672840614614,2.98941816,1253.4,1253.3,3.38760694]
[1672840615241,2.98942635,1253.4,1253.3,3.38760694]
[1672840615975,2.98942635,1253.4,1253.3,3.38336964]
[1672840616185,15.66576762,1253.5,1253.3,1.5947627]
[1672840616709,15.66576762,1253.5,1253.3,3.38336964]
[1672840617039,15.66576762,1253.5,1253.3,1.5947627]
[1672840617241,15.66576762,1253.5,1253.3,3.38336964]
[1672840618087,15.66576762,1253.5,1253.3,1.5947627]
[1672840618298,15.66576762,1253.5,1253.3,3.38336964]
[1672840619665,19.85005255,1253.5,1253.3,1.5947627]
[1672840621135,9.576,1253.4,1253.2,4.79590694]
[1672840621343,5.49016366,1253.3,1253.2,4.79590694]
[1672840623546,5.49016366,1253.3,1253.2,1.78860694]
[1672840625128,2.99016366,1253.3,1253.2,1.78860694]
[1672840626284,5.49016366,1253.3,1253.2,1.78860694]
[1672840626493,2.99016366,1253.3,1253.2,4.16795828]
[1672840628819,2.99016366,1253.3,1253.2,1.78860694]
[1672840629971,5.49016366,1253.3,1253.2,1.78860694]
[1672840631126,2.99016366,1253.3,1253.2,1.78860694]
[1672840632284,2.5,1253.3,1253.2,1.78860694]
[1672840632491,5.49045333,1253.3,1253.2,1.78860694]
[1672840632701,2.5,1253.3,1253.2,1.78860694]
[1672840633440,13.46744495,1253.3,1253.2,1.78860694]
[1672840633642,13.46743437,1253.3,1253.2,1.78860694]
[1672840633852,10.477,1253.3,1253.2,1.78860694]
[1672840634588,13.46718253,1253.3,1253.2,1.78860694]
[1672840634804,10.477,1253.3,1253.2,1.78860694]
[1672840635011,13.4671607,1253.3,1253.2,1.78860694]
[1672840635216,10.477,1253.3,1253.2,1.78860694]
[1672840636172,13.46717563,1253.3,1253.2,1.78860694]
[1672840640476,10.477,1253.3,1253.2,1.78860694]
[1672840640900,13.46713781,1253.3,1253.2,1.78860694]
[1672840641110,13.46715139,1253.3,1253.2,1.78860694]
[1672840641323,13.46713636,1253.3,1253.2,1.78860694]
[1672840641855,10.477,1253.3,1253.2,1.78860694]
[1672840643850,12.076,1253.3,1253.2,1.78860694]
[1672840644586,15.06612729,1253.3,1253.2,1.78860694]
[1672840645320,12.076,1253.3,1253.2,1.78860694]
[1672840645743,12.56615871,1253.3,1253.2,1.78860694]
[1672840646260,4.58915871,1253.3,1253.2,1.78860694]
[1672840646478,2.99015871,1253.3,1253.2,7.76695828]
[1672840646678,2.99015871,1253.3,1253.2,3.97835134]
[1672840647310,2.99015871,1253.3,1253.2,5.77082512]
[1672840647735,2.99015871,1253.3,1253.2,7.77082512]
[1672840648891,2.99015871,1253.3,1253.2,3.39147378]
[1672840649103,2.99015871,1253.3,1253.2,5.77082512]
[1672840650046,2.99015871,1253.3,1253.2,6.98565134]
[1672840650462,2.99015871,1253.3,1253.2,3.97835134]
[1672840650674,2.99015871,1253.3,1253.2,6.98565134]
[1672840650994,2.99015871,1253.3,1253.2,3.97835134]
[1672840651521,2.99015871,1253.3,1253.2,8.77836338]
[1672840651835,2.99015871,1253.3,1253.2,8.77832622]
[1672840652248,2.99015871,1253.3,1253.2,6.98565134]
[1672840653090,2.99015871,1253.3,1253.2,8.77832968]
[1672840654147,2.99015871,1253.3,1253.2,5.77102968]
[1672840654568,2.99015871,1253.3,1253.2,8.77832968]
[1672840654774,2.99015871,1253.3,1253.2,6.98565134]
[1672840655190,2.99015871,1253.3,1253.2,8.77845867]
[1672840655929,2.99015871,1253.3,1253.2,8.77853429]
[1672840657078,2.99015871,1253.3,1253.2,8.39999946]
[1672840657608,2.99015871,1253.3,1253.2,10.39999946]
[1672840657925,2.99015871,1253.3,1253.2,7.39269946]
[1672840658238,2.99015871,1253.3,1253.2,10.39999946]
[1672840659614,2.99015871,1253.3,1253.2,7.39269946]
[1672840660026,2.99015871,1253.3,1253.2,10.39999946]
[1672840662766,2.99015871,1253.3,1253.2,7.39269946]
[1672840663189,2.99015871,1253.3,1253.2,10.39999946]
[1672840663814,2.99015871,1253.3,1253.2,10.38999946]
[1672840665390,2.99015871,1253.3,1253.2,7.38269946]
[1672840665595,2.99015871,1253.3,1253.2,10.38999946]
[1672840667276,2.99015871,1253.3,1253.2,10.76823196]
[1672840668547,2.99015871,1253.3,1253.2,8.97565134]
[1672840668961,2.98296443,1253.3,1253.2,8.97565134]
[1672840669489,2.98296443,1253.3,1253.2,10.76817655]
[1672840669698,2.98296443,1253.3,1253.2,10.76817629]
[1672840669912,2.98296443,1253.3,1253.2,10.76817777]
[1672840670124,17.26476762,1253.5,1253.2,10.38997126]
[1672840670335,17.26476762,1253.5,1253.3,2.98724146]
[1672840671166,17.26476762,1253.5,1253.3,1.19489658]
[1672840672441,21.44905255,1253.5,1253.3,1.19489658]
[1672840673903,17.26476762,1253.5,1253.3,2.98724146]
[1672840674103,17.26476762,1253.5,1253.3,1.19489658]
[1672840674318,21.44905255,1253.5,1253.3,1.19489658]
[1672840674530,17.26476762,1253.5,1253.3,2.98724146]
[1672840675682,17.26476762,1253.5,1253.3,1.19489658]
[1672840676115,21.44905255,1253.5,1253.3,1.19489658]
[1672840676525,21.44905255,1253.5,1253.3,2.98724146]
[1672840676742,17.26476762,1253.5,1253.3,2.98724146]
[1672840676944,21.44905255,1253.5,1253.3,2.98724146]
[1672840677373,21.44905255,1253.5,1253.3,1.19489658]
[1672840677680,17.26476762,1253.5,1253.3,2.98724146]
[1672840677885,21.44905255,1253.5,1253.3,1.19489658]
[1672840678315,21.44905255,1253.5,1253.3,2.98724146]
[1672840678725,21.44905255,1253.5,1253.3,1.19489658]
[1672840679369,3.58976762,1253.4,1253.3,1.19489658]
[1672840679683,21.44905255,1253.5,1253.3,1.19489658]
[1672840680627,3.58976762,1253.4,1253.3,1.19489658]
[1672840681363,21.44905255,1253.5,1253.3,2.98724146]
[1672840681567,21.44905255,1253.5,1253.3,1.19489658]
[1672840681886,3.58976762,1253.4,1253.3,1.19489658]
[1672840682309,21.44905255,1253.5,1253.3,2.98724146]
[1672840682934,3.58976762,1253.4,1253.3,2.98724146]
[1672840683143,3.58976762,1253.4,1253.3,1.19489658]
[1672840683355,3.58976762,1253.4,1253.3,2.98724146]
[1672840683878,5.18876762,1253.4,1253.3,2.98724146]
[1672840684409,1.599,1253.4,1253.3,2.98724146]
[1672840685460,5.18876762,1253.4,1253.3,2.98724146]
[1672840686089,1.599,1253.4,1253.3,2.98724146]
[1672840686295,1.599,1253.4,1253.3,1.79234488]
[1672840687456,1.599,1253.4,1253.3,2.98785398]
[1672840687667,5.18876762,1253.4,1253.3,2.98785398]
[1672840688612,1.599,1253.4,1253.3,1.79234488]
[1672840688826,1.599,1253.4,1253.3,2.98783693]
[1672840689349,2.99181231,1253.4,1253.3,5.39260228]
[1672840689557,2.99181231,1253.4,1253.3,6.99160228]
[1672840689768,2.99181231,1253.5,1253.3,6.99160228]
[1672840689981,2.99181231,1253.5,1253.4,6.3851772]
[1672840690190,2.99181231,1253.5,1253.4,6.97165134]
[1672840690405,3.58976762,1253.8,1253.4,20.14985493]
[1672840690609,3.58976762,1253.9,1253.7,2.78602119]
[1672840690825,3.58976762,1253.9,1253.8,1.599]
[1672840691244,6.68428493,1253.9,1253.8,1.599]
[1672840691770,6.08767287,1253.9,1253.8,1.599]
[1672840692812,3.58767287,1253.9,1253.8,1.599]
[1672840693024,6.08767287,1253.9,1253.8,1.599]
[1672840693237,3.58767287,1253.9,1253.8,1.599]
[1672840693446,7.67167287,1254.0,1253.8,1.599]
[1672840693663,7.67167287,1254.0,1253.8,4.6063]
[1672840694286,4.084,1254.0,1253.8,4.6063]
[1672840694710,1.584,1254.0,1253.8,4.6063]
[1672840694916,4.084,1254.0,1253.8,1.599]
[1672840695132,1.584,1254.0,1253.8,4.6063]
[1672840696809,2.5,1254.1,1253.9,1.599]
[1672840727525,2.5,1254.1,1253.9,2.79302119]
[1672840727736,6.08767287,1254.1,1253.9,1.599]
[1672840727957,2.5,1254.1,1253.9,1.599]
[1672840728477,2.5,1254.1,1253.9,4.6063]
[1672840729530,2.5,1254.1,1253.9,5.80032119]
[1672840729739,1.593,1254.0,1253.9,4.20132119]
[1672840730265,5.18067287,1254.0,1253.8,4.58405298]
[1672840730474,1.0,1253.9,1253.8,4.58405298]
[1672840730888,1.0,1253.9,1253.8,7.59135298]
[1672840731098,1.593,1254.0,1253.8,6.39733179]
[1672840731312,1.593,1254.0,1253.9,1.19260814]
[1672840731522,1.593,1254.0,1253.8,7.58993993]
[1672840731738,5.18067287,1254.0,1253.9,1.19260814]
[1672840734366,9.3649578,1254.0,1253.8,7.58993993]
[1672840734681,1.0,1253.9,1253.8,7.58993993]
[1672840735733,9.3649578,1254.0,1253.8,7.58993993]
[1672840735934,1.0,1253.9,1253.8,7.58993993]
[1672840736773,1.0,1253.9,1253.8,4.58263993]
[1672840737615,9.3649578,1254.0,1253.8,4.58263993]
[1672840737930,1.0,1253.9,1253.8,4.58263993]
[1672840739304,9.3649578,1254.0,1253.8,4.58263993]
[1672840739618,1.0,1253.9,1253.8,4.58263993]
[1672840740984,5.18067287,1254.0,1253.8,7.58993993]
[1672840741613,5.18067287,1254.0,1253.9,1.19260814]
[1672840743935,5.18667287,1254.0,1253.9,1.19260814]
[1672840744158,1.599,1254.0,1253.9,1.19260814]
[1672840747498,5.18667287,1254.0,1253.9,1.19260814]
[1672840760322,1.599,1254.0,1253.9,1.19260814]
[1672840760531,1.599,1254.0,1253.9,2.98363993]
[1672840763071,1.599,1254.0,1253.9,5.99093993]
[1672840764228,1.599,1254.0,1253.9,4.19990814]
[1672840764640,1.599,1254.0,1253.9,5.99093993]
[1672840764954,1.599,1254.0,1253.9,4.19990814]
[1672840766008,1.599,1254.0,1253.9,1.19260814]
[1672840767281,1.599,1254.0,1253.9,2.98363993]
[1672840768747,1.599,1254.0,1253.9,2.98150366]
[1672840770209,1.599,1254.0,1253.9,1.19047187]
[1672840771379,1.599,1254.0,1253.9,2.98150366]
[1672840776000,1.599,1254.0,1253.9,1.79103179]
[1672840776421,1.599,1254.0,1253.9,4.79833179]
[1672840776621,1.599,1254.0,1253.9,1.79103179]
[1672840776836,1.599,1254.0,1253.9,4.79833179]
[1672840779685,1.599,1254.0,1253.9,1.79103179]
[1672840781465,1.599,1254.0,1253.9,4.79833179]
[1672840782005,1.599,1254.0,1253.9,1.79103179]
[1672840783267,1.599,1254.0,1253.9,4.79833179]
[1672840784000,2.599,1254.0,1253.9,4.79833179]
[1672840784318,2.599,1254.0,1253.9,1.79103179]
[1672840784528,1.599,1254.0,1253.9,4.79833179]
[1672840785475,1.599,1254.0,1253.9,1.79103179]
[1672840787262,2.599,1254.0,1253.9,1.79103179]
[1672840787457,6.18667287,1254.0,1253.9,1.79103179]
[1672840787671,6.18667287,1254.0,1253.8,8.77537418]
[1672840789891,5.18667287,1254.0,1253.8,8.77537418]
[1672840790827,5.18667287,1254.0,1253.8,5.76807418]
[1672840791045,5.18667287,1254.0,1253.8,8.77537418]
[1672840791364,5.18667287,1254.0,1253.8,5.76807418]
[1672840791562,5.18667287,1254.0,1253.8,8.77537418]
[1672840791989,5.18667287,1254.0,1253.8,5.76807418]
[1672840792310,5.18667287,1254.0,1253.8,8.77537418]
[1672840793773,3.58767287,1254.0,1253.8,8.77537418]
[1672840794404,3.58767287,1254.0,1253.8,6.38733179]
[1672840794617,3.58767287,1254.0,1253.8,8.77537418]
[1672840794825,3.58767287,1254.0,1253.8,5.76807418]
[1672840795142,3.58767287,1254.0,1253.8,8.77537418]
[1672840796610,3.58767287,1254.0,1253.8,6.38733179]
[1672840796820,3.58767287,1254.0,1253.8,8.77537418]
[1672840797131,3.58767287,1254.0,1253.8,6.38733179]
[1672840797448,3.58767287,1254.0,1253.8,8.77537418]
[1672840798919,9.3709578,1254.1,1253.9,1.79103179]
[1672840799235,5.18667287,1254.1,1253.9,1.79103179]
[1672840799447,7.68667287,1254.1,1253.9,1.79103179]
[1672840799758,11.8709578,1254.1,1253.9,1.79103179]
[1672840800172,7.68667287,1254.1,1253.9,1.79103179]
[1672840801331,5.18667287,1254.1,1253.9,1.79103179]
[1672840801532,5.18667287,1254.1,1253.9,4.17907418]
[1672840801746,3.58767287,1254.1,1254.0,1.599]
[1672840802596,3.58767287,1254.1,1254.0,3.39003179]
[1672840802801,3.58767287,1254.1,1254.0,6.39733179]
[1672840803010,5.18667287,1254.2,1254.0,6.39733179]
[1672840803853,3.58767287,1254.1,1254.0,6.39733179]
[1672840804174,2.5,1254.1,1254.0,4.6063]
[1672840804501,2.5,1254.1,1253.8,6.38333179]
[1672840804502,12.076,1254.1,1253.8,6.38333179]
[1672840804802,6.2053,1253.9,1253.7,1.72723339]
[1672840805004,1.585,1253.8,1253.6,3.98704239]
[1672840805214,5.17267287,1253.8,1253.6,1.599]
[1672840806169,2.5,1253.7,1253.6,1.599]
[1672840807850,4.085,1253.8,1253.6,1.599]
[1672840808266,12.062,1253.8,1253.6,1.599]
[1672840808902,1.599,1253.7,1253.4,4.5943]
[1672840809112,1.599,1253.7,1253.4,7.0943]
[1672840809323,4.6063,1253.7,1253.4,7.0943]
[1672840809533,2.5,1253.6,1253.4,7.0943]
[1672840809949,2.5,1253.6,1253.4,9.48234239]
[1672840810268,1.599,1253.7,1253.4,7.0943]
[1672840810686,2.5,1253.6,1253.4,7.0943]
[1672840811307,2.5,1253.6,1253.4,4.087]
[1672840811519,2.5,1253.6,1253.4,7.0943]
[1672840812369,2.5,1253.6,1253.4,4.5943]
[1672840812573,2.5,1253.6,1253.3,1.599]
[1672840812574,1.599,1253.5,1253.3,1.599]
[1672840812894,12.5833,1253.5,1253.3,1.599]
[1672840813520,1.586,1253.4,1253.2,1.585]
[1672840814573,1.586,1253.4,1253.2,4.5923]
[1672840814992,1.586,1253.4,1253.3,2.0]
[1672840816367,1.599,1253.5,1253.3,3.599]
[1672840817098,1.599,1253.7,1253.4,4.6063]
[1672840817305,1.599,1253.8,1253.6,1.599]
[1672840817508,2.5,1253.8,1253.7,1.599]
[1672840818562,4.099,1253.9,1253.7,1.599]
[1672840819513,7.07662583,1253.9,1253.7,1.599]
[1672840819720,4.57662583,1253.9,1253.7,1.599]
[1672840820040,1.599,1253.9,1253.8,2.5]
[1672840820245,7.21862583,1254.0,1253.8,7.1063]
[1672840820461,4.57662583,1254.0,1253.8,7.1063]
[1672840821929,7.07662583,1254.0,1253.8,7.1063]
[1672840823812,7.07662583,1254.0,1253.8,4.099]
[1672840826970,1.0,1253.9,1253.8,1.599]
[1672840827819,3.97762583,1253.9,1253.8,1.599]
[1672840828131,1.0,1253.9,1253.8,1.599]
[1672840829401,7.07662583,1254.0,1253.8,1.599]
[1672840833812,5.47762583,1254.0,1253.8,1.586]
[1672840836958,2.97762583,1254.0,1253.8,1.586]
[1672840837168,5.47762583,1254.0,1253.8,1.586]
[1672840837597,2.97762583,1254.0,1253.8,1.586]
[1672840837805,5.47762583,1254.0,1253.8,1.586]
[1672840838121,5.47762583,1254.0,1253.8,4.5933]
[1672840839169,2.97762583,1254.0,1253.8,4.5933]
[1672840839912,5.47762583,1254.0,1253.8,4.5933]
[1672840841161,2.97762583,1254.0,1253.8,4.5933]
[1672840841580,5.47762583,1254.0,1253.8,4.5933]
[1672840842003,5.47762583,1254.0,1253.8,1.586]
[1672840842211,5.47762583,1254.0,1253.8,4.5933]
[1672840842421,2.97762583,1254.0,1253.8,4.5933]
[1672840843800,4.57662583,1254.0,1253.8,4.5943]
[1672840845898,2.97762583,1253.9,1253.8,4.5943]
[1672840846112,4.57662583,1254.0,1253.8,4.5943]
[1672840846318,5.47762583,1253.9,1253.8,4.5943]
[1672840847583,5.47762583,1253.9,1253.8,1.587]
[1672840848108,5.57662583,1254.0,1253.8,1.587]
[1672840848319,2.97762583,1253.9,1253.8,1.587]
[1672840848754,5.57662583,1254.0,1253.8,1.587]
[1672840849261,5.57662583,1254.0,1253.9,3.0073]
[1672840849687,4.57662583,1254.0,1253.9,3.0073]
[1672840851684,4.57662583,1254.0,1253.8,1.587]
[1672840851890,4.57662583,1254.0,1253.8,4.5943]
[1672840853788,4.57662583,1254.0,1253.8,4.6063]
[1672840854311,2.97762583,1253.9,1253.8,4.6063]
[1672840856202,1.599,1254.0,1253.8,4.6063]
[1672840856409,5.18667287,1254.0,1253.8,4.6063]
[1672840857036,2.98856742,1253.9,1253.8,4.6063]
[1672840864830,2.98856742,1253.9,1253.8,6.39480518]
[1672840868715,5.18667287,1254.0,1253.7,3.38750518]
[1672840868914,2.98986205,1253.8,1253.7,5.77602087]
[1672840869127,2.98986205,1253.8,1253.7,3.38797848]
[1672840873878,4.58886205,1253.8,1253.7,1.78897848]
[1672840875769,4.58824892,1253.8,1253.7,1.78897848]
[1672840877762,4.58824892,1253.8,1253.7,4.79627848]
[1672840878391,4.58824892,1253.8,1253.7,1.78897848]
[1672840878591,4.58824892,1253.8,1253.7,4.79627848]
[1672840880069,1.599,1253.8,1253.7,4.79627848]
[1672840884490,1.599,1253.8,1253.7,6.39527848]
[1672840884805,1.599,1254.0,1253.7,8.40810401]
[1672840885013,1.599,1254.0,1253.8,3.38676035]
[1672840885434,1.599,1254.0,1253.9,2.0]
[1672840888280,1.599,1254.0,1253.9,5.0073]
[1672840888804,1.599,1254.0,1253.9,6.19883191]
[1672840891114,1.599,1254.0,1253.8,6.57829226]
[1672840892160,4.099,1254.0,1253.8,6.57829226]
[1672840892588,1.599,1254.0,1253.8,6.57829226]
[1672840892794,4.099,1254.0,1253.8,6.57829226]
[1672840893003,4.099,1254.0,1253.8,4.79053191]
[1672840893215,7.68667287,1254.0,1253.8,6.57829226]
[1672840893425,4.099,1254.0,1253.8,6.57829226]
[1672840893635,1.599,1254.0,1253.8,6.57829226]
[1672840893848,4.099,1254.0,1253.8,6.57829226]
[1672840894062,1.599,1254.0,1253.8,6.57829226]
[1672840895750,4.099,1254.0,1253.8,6.57829226]
[1672840895950,7.68667287,1254.0,1253.8,6.57829226]
[1672840896162,4.099,1254.0,1253.8,6.57829226]
[1672840896904,4.099,1254.0,1253.9,1.19153191]
[1672840897106,4.099,1254.0,1253.8,6.57829226]
[1672840897526,4.099,1254.0,1253.8,4.79053191]
[1672840897738,7.68667287,1254.0,1253.8,4.79053191]
[1672840899217,5.18667287,1254.0,1253.8,4.79053191]
[1672840899629,7.68667287,1254.0,1253.8,4.79053191]
[1672840900997,5.18667287,1254.0,1253.8,4.79053191]
[1672840901206,5.18667287,1254.0,1253.8,6.57829226]
[1672840901424,5.18667287,1254.0,1253.8,4.79053191]
[1672840901635,5.18667287,1254.0,1253.8,6.57829226]
[1672840902368,7.68667287,1254.0,1253.8,4.79053191]
[1672840902998,5.18667287,1254.0,1253.8,4.79053191]
[1672840903630,1.599,1254.0,1253.8,6.57829226]
[1672840903942,7.68667287,1254.0,1253.8,4.79053191]
[1672840904568,7.68667287,1254.0,1253.8,2.79053191]
[1672840906894,15.66367287,1254.0,1253.8,2.79053191]
[1672840909619,12.774,1253.9,1253.7,1.19153191]
[1672840909930,1.592,1253.7,1253.6,1.19153191]
[1672840910146,4.191,1253.7,1253.6,1.19153191]
[1672840910459,4.191,1253.7,1253.5,8.48659226]
[1672840910664,2.592,1253.7,1253.6,1.19153191]
[1672840910874,4.187,1253.7,1253.6,1.19153191]
[1672840911826,4.187,1253.7,1253.5,8.48659226]
[1672840912040,1.599,1253.6,1253.5,7.29506035]
[1672840913826,1.599,1253.6,1253.5,8.48673569]
[1672840915608,1.599,1253.6,1253.5,5.98673569]
[1672840917087,1.599,1253.6,1253.5,4.19897534]
[1672840917512,1.599,1253.6,1253.5,3.0073]
[1672840921185,1.599,1253.6,1253.4,2.78367534]
[1672840921394,1.599,1253.6,1253.4,1.592]
[1672840922657,3.198,1253.5,1253.3,4.19897534]
[1672840922863,1.595,1253.4,1253.3,3.0073]
[1672840923074,4.095,1253.4,1253.3,3.0073]
[1672840923811,4.095,1253.4,1253.2,2.77867534]
[1672840924018,4.095,1253.4,1253.2,1.587]
[1672840930016,1.595,1253.4,1253.2,1.587]
[1672840930755,4.095,1253.4,1253.2,1.587]
[1672840932234,1.595,1253.4,1253.3,3.0073]
[1672840933805,1.599,1253.5,1253.3,4.6063]
[1672840939166,1.599,1253.5,1253.3,4.59883495]
[1672840941066,1.599,1253.5,1253.3,4.6063]
[1672840942854,1.599,1253.5,1253.3,1.599]
[1672840943166,4.6063,1253.5,1253.3,1.599]
[1672840944323,6.2033,1253.5,1253.3,1.599]
[1672840949793,9.79097287,1253.5,1253.3,1.599]
[1672840950009,17.76797287,1253.5,1253.3,1.599]
[1672840950736,14.76067287,1253.5,1253.3,1.599]
[1672840953888,1.593,1253.4,1253.2,2.79067534]
[1672840956517,1.593,1253.4,1253.2,4.57843569]
[1672840959041,1.593,1253.4,1253.2,7.58573569]
[1672840959778,5.18067287,1253.4,1253.3,1.19167534]
[1672840962081,1.593,1253.4,1253.3,1.19167534]
[1672840962299,1.593,1253.4,1253.3,2.97943569]
[1672840962501,1.593,1253.4,1253.3,1.19167534]
[1672840962823,1.593,1253.4,1253.3,2.97943569]
[1672840963976,5.17367287,1253.5,1253.3,3.37976035]
[1672840964185,5.17367287,1253.5,1253.4,4.20144085]
[1672840967449,3.58767287,1253.5,1253.4,5.80044085]
[1672840967648,5.78328493,1253.6,1253.4,5.80044085]
[1672840967649,9.3709578,1253.6,1253.4,5.80044085]
[1672840967970,2.5,1253.5,1253.4,5.80044085]
[1672840970173,9.3709578,1253.6,1253.4,5.80044085]
[1672840970486,2.5,1253.5,1253.4,5.80044085]
[1672840970700,9.3709578,1253.6,1253.4,5.80044085]
[1672840971334,11.8709578,1253.6,1253.4,5.80044085]
[1672840972902,9.3709578,1253.6,1253.4,5.80044085]
[1672840973326,9.3709578,1253.6,1253.4,2.79314085]
[1672840973542,9.3709578,1253.6,1253.4,7.5882012]
[1672840973543,5.18667287,1253.6,1253.4,7.5882012]
[1672840974067,5.18667287,1253.6,1253.4,5.80044085]
[1672840974272,7.68667287,1253.6,1253.4,5.80044085]
[1672840974485,5.18667287,1253.6,1253.4,5.80044085]
[1672840975952,5.18667287,1253.6,1253.4,7.5882012]
[1672840976169,5.18667287,1253.6,1253.4,5.80044085]
[1672840981531,5.18667287,1253.6,1253.4,2.79314085]
[1672840981743,5.18667287,1253.6,1253.4,5.80044085]
[1672840985212,5.18667287,1253.6,1253.4,2.79314085]
[1672840986157,7.68667287,1253.6,1253.4,2.79314085]
[1672840987314,5.18667287,1253.6,1253.4,2.79314085]
[1672840989729,7.68667287,1253.6,1253.4,2.79314085]
[1672840990044,5.18667287,1253.6,1253.4,2.79314085]
[1672840992255,7.68667287,1253.6,1253.4,2.79314085]
[1672840992785,15.66367287,1253.6,1253.4,2.79314085]
[1672840996257,15.66367287,1253.6,1253.4,4.5809012]
[1672840996461,15.66367287,1253.6,1253.4,2.79314085]
[1672840998452,13.16367287,1253.6,1253.4,2.79314085]
[1672840998667,13.16367287,1253.6,1253.4,4.5809012]
[1672841000145,13.16367287,1253.6,1253.5,1.19414085]
[1672841000357,13.16367287,1253.6,1253.4,4.5809012]
[1672841000670,17.3479578,1253.6,1253.4,4.5809012]
[1672841002770,2.5,1253.5,1253.4,4.5809012]
[1672841003192,6.08767287,1253.5,1253.4,4.5809012]
[1672841003819,7.68667287,1253.5,1253.4,5.9892012]
[1672841004447,7.68667287,1253.5,1253.4,4.20144085]
[1672841005498,7.68667287,1253.5,1253.4,1.19414085]
[1672841007185,7.68667287,1253.5,1253.3,4.5809012]
[1672841007395,7.68667287,1253.5,1253.4,1.19414085]